fUST/lending_fUST_20241228
["ID","MTS","AMOUNT","RATE_DAILY","PERIOD"]
[346851254,1735326561603,-400.0,0.00013973,2]
[346851255,1735326561626,-500.0,0.00014037,2]
[346851256,1735326561650,-1000.0,0.00014139,2]
[346851257,1735326561673,-500.0,0.00014139,2]
[346851258,1735326561696,-500.0,0.00014139,2]
[346851259,1735326561719,-500.0,0.00014139,2]
[346851260,1735326561744,-500.0,0.00014139,2]
[346851261,1735326561767,-500.0,0.00014139,2]
[346851262,1735326561789,-263.10228976,0.00014139,2]
[346851263,1735326561814,-500.0,0.00014139,2]
[346851264,1735326561837,-3503.25,0.00014139,2]
[346851265,1735326561858,-500.0,0.00014139,2]
[346851266,1735326561881,-592.57,0.00014139,2]
[346851267,1735326561903,-500.0,0.00014139,2]
[346851268,1735326561924,-500.0,0.00014139,2]
[346851269,1735326561946,-500.0,0.00014139,2]
[346851270,1735326561968,-500.0,0.00014143,2]
[346851271,1735326561989,-500.0,0.00014311,2]
[346851272,1735326562010,-500.0,0.00014412,2]
[346851273,1735326562033,-500.0,0.00014412,2]
[346851274,1735326562054,-500.0,0.00014412,2]
[346851275,1735326562074,-500.0,0.00014412,2]
[346851276,1735326562095,-500.0,0.00014412,2]
[346851277,1735326562116,-500.0,0.00014412,2]
[346851278,1735326562137,-500.0,0.00014412,2]
[346851279,1735326562160,-592.82270479,0.00014412,2]
[346851280,1735326562180,-500.0,0.00014412,2]
[346851281,1735326562202,-500.0,0.00014412,2]
[346851282,1735326562223,-500.0,0.00014412,2]
[346851283,1735326562245,-500.0,0.00014412,2]
[346851284,1735326562266,-446.95990645,0.00014412,2]
[346851285,1735326562287,-1000.0,0.00014413,2]
[346851286,1735326562307,-500.0,0.00014413,2]
[346851287,1735326562328,-500.0,0.00014413,2]
[346851288,1735326562350,-500.0,0.00014413,2]
[346851289,1735326562372,-500.0,0.00014413,2]
[346851290,1735326562394,-500.0,0.00014413,2]
[346851291,1735326562417,-500.0,0.00014413,2]
[346851292,1735326562440,-3503.25,0.00014413,2]
[346851293,1735326562461,-611.36150352,0.00014413,2]
[346851294,1735326562483,-500.0,0.00014413,2]
[346851295,1735326562506,-500.0,0.00014413,2]
[346851296,1735326562531,-500.0,0.00014413,2]
[346851297,1735326562554,-500.0,0.00014417,2]
[346851298,1735326562577,-377.60059701,0.00014488,2]
[346851299,1735326562692,-500.0,0.00013591,2]
[346851300,1735326562717,-42.39940299,0.00014488,2]
[346851301,1735326562741,-125.50503899,0.00014585,2]
[346851302,1735326562772,-374.49496101,0.00014585,2]
[346851303,1735326562795,-1000.0,0.00014687,2]
[346851304,1735326562820,-500.0,0.00014687,2]
[346851305,1735326562852,-500.0,0.00014687,2]
[346851306,1735326562877,-500.0,0.00014687,2]
[346851307,1735326562906,-500.0,0.00014687,2]
[346851309,1735326562933,-207.6,0.00014687,2]
[346851312,1735326562963,-500.0,0.00014687,2]
[346851314,1735326562989,-3503.25,0.00014687,2]
[346851316,1735326563013,-500.0,0.00014687,2]
[346851318,1735326563038,-500.0,0.00014687,2]
[346851320,1735326563063,-500.0,0.00014687,2]
[346851322,1735326563084,-211.59,0.00014691,2]
[346851324,1735326563105,-500.0,0.00014775,2]
[346851326,1735326563128,-500.0,0.00014859,2]
[346851328,1735326563150,-1000.0,0.00014961,2]
[346851330,1735326563175,-500.0,0.00014961,2]
[346851332,1735326563200,-500.0,0.00014961,2]
[346851334,1735326563226,-500.0,0.00014961,2]
[346851336,1735326563249,-500.0,0.00014961,2]
[346851338,1735326563274,-500.0,0.00014961,2]
[346851339,1735326563297,-3503.25,0.00014961,2]
[346851340,1735326563318,-500.0,0.00014961,2]
[346851341,1735326563340,-500.0,0.00014961,2]
[346851342,1735326563362,-500.0,0.00014961,2]
[346851343,1735326563383,-500.0,0.00015133,2]
[346851344,1735326563405,-1106.38938607,0.00015235,2]
[346851345,1735326563426,-500.0,0.00015235,2]
[346851346,1735326563447,-244.52,0.00015235,2]
[346851347,1735326563471,-500.0,0.00015235,2]
[346851348,1735326563494,-500.0,0.00015235,2]
[346851349,1735326563518,-500.0,0.00015235,2]
[346851350,1735326563541,-3503.25,0.00015235,2]
[346851352,1735326563564,-291.90235355,0.00015235,2]
[346851354,1735326563587,-500.0,0.00015235,2]
[346851356,1735326563612,-500.0,0.00015235,2]
[346851358,1735326563635,-433.7,0.00015407,2]
[346851360,1735326563656,-500.0,0.00015509,2]
[346851362,1735326563786,-500.0,0.00015509,2]
[346851363,1735326563812,-500.0,0.00015509,2]
[346851364,1735326563835,-500.0,0.00015509,2]
[346851365,1735326563860,-3503.25,0.00015509,2]
[346851366,1735326563883,-500.0,0.00015509,2]
[346851367,1735326563906,-500.0,0.00015509,2]
[346851368,1735326563928,-500.0,0.00015783,2]
[346851369,1735326563951,-500.0,0.00015783,2]
[346851370,1735326563974,-500.0,0.00015783,2]
[346851371,1735326563996,-500.0,0.00015783,2]
[346851372,1735326564020,-3503.25,0.00015783,2]
[346851373,1735326564043,-500.0,0.00015783,2]
[346851374,1735326564066,-500.0,0.00015783,2]
[346851375,1735326564088,-587.0,0.00015885,2]
[346851376,1735326564109,-543.13212334,0.00015957,2]
[346851377,1735326564131,-500.0,0.00016057,2]
[346851378,1735326564154,-500.0,0.00016057,2]
[346851379,1735326564177,-500.0,0.00016057,2]
[346851380,1735326564199,-443.72,0.00016057,2]
[346851381,1735326564223,-3503.25,0.00016057,2]
[346851382,1735326564245,-500.0,0.00016057,2]
[346851383,1735326564268,-500.0,0.00016057,2]
[346851384,1735326564288,-394.0,0.00016303,2]
[346851385,1735326564308,-500.0,0.00016331,2]
[346851386,1735326564331,-500.0,0.00016331,2]
[346851387,1735326564353,-500.0,0.00016331,2]
[346851388,1735326564376,-3503.25,0.00016331,2]
[346851389,1735326564399,-267.85758734,0.00016331,2]
[346851390,1735326564420,-500.0,0.00016438,2]
[346851391,1735326564441,-500.0,0.00016438,2]
[346851392,1735326564463,-500.0,0.00016438,2]
[346851393,1735326564484,-500.0,0.00016438,2]
[346851394,1735326564505,-500.0,0.00016438,2]
[346851395,1735326564526,-500.0,0.00016438,2]
[346851396,1735326564547,-500.0,0.00016438,2]
[346851397,1735326564568,-500.0,0.00016438,2]
[346851398,1735326564593,-500.0,0.00016438,2]
[346851399,1735326564614,-500.0,0.00016438,2]
[346851400,1735326564636,-500.0,0.00016438,2]
[346851401,1735326564658,-500.0,0.00016438,2]
[346851402,1735326564681,-408.0785891,0.00016438,2]
[346851403,1735326564703,-500.0,0.00016438,2]
[346851404,1735326564724,-500.0,0.00016438,2]
[346851405,1735326564745,-284.904,0.00016552,2]
[346851406,1735326564767,-164.13,0.000166,2]
[346851407,1735326564788,-500.0,0.00016605,2]
[346851408,1735326564811,-461.0201498,0.00016605,2]
[346851409,1735326564834,-500.0,0.00016605,2]
[346851410,1735326564856,-3503.25,0.00016605,2]
[346851411,1735326564878,-1200.0,0.00016618,2]
[346851412,1735326564899,-541.48,0.00016879,2]
[346851413,1735326564925,-500.0,0.00016879,2]
[346851414,1735326564949,-3503.25,0.00016879,2]
[346851415,1735326564979,-543.13212334,0.00016995,2]
[346851416,1735326565002,-157.76868814,0.00017153,2]
[346851417,1735326565025,-3503.25,0.00017153,2]
[346851418,1735326565046,-151.05477497,0.00017357,2]
[346851419,1735326565069,-823.0,0.00017417,2]
[346851420,1735326565094,-3503.25,0.00017427,2]
[346851421,1735326565116,-151.0,0.00017465,5]
[346851422,1735326565139,-2500.0,0.000177,2]
[346851423,1735326565161,-2130.13333964,0.000177,2]
[346851424,1735326565184,-3503.25,0.00017701,2]
[346851425,1735326565207,-151.0,0.00017807,5]
[346851426,1735326565229,-500.0,0.00017808,4]
[346851427,1735326565253,-3503.25,0.00017975,2]
[346851428,1735326566766,500.0,0.00013318,2]
[346851429,1735326567561,500.0,0.00013592,2]
[346851430,1735326568172,500.0,0.00013866,2]
[346851431,1735326568660,500.0,0.0001414,2]
[346851432,1735326569406,500.0,0.00014414,2]
[346851433,1735326569857,500.0,0.00014688,2]
[346851434,1735326570699,500.0,0.00014962,2]
[346851435,1735326571563,500.0,0.00015236,2]
[346851436,1735326571994,263.549664,0.00017851,2]
[346851437,1735326572099,500.0,0.0001551,2]
[346851438,1735326572582,500.0,0.00015784,2]
[346851439,1735326573054,500.0,0.00016058,2]
[346851440,1735326573548,234.30761142,0.00016332,2]
[346851441,1735326575548,1200.0,0.00017062,2]
[346851443,1735326586330,500.0,0.00013591,2]
[346851444,1735326586616,991.0053927,0.00017901,2]
[346851445,1735326586710,1200.0,0.00017062,2]
[346851446,1735326595667,500.0,0.00013591,2]
[346851447,1735326597865,1200.0,0.00017062,2]
[346851448,1735326599202,213.11238855,0.00013591,2]
[346851449,1735326609007,1200.0,0.00017062,2]
[346851450,1735326620015,283.95160642,0.0001359,2]
[346851451,1735326621907,1281.93,0.00013318,2]
[346851452,1735326622886,1281.93,0.00013592,2]
[346851453,1735326624072,1281.93,0.00013866,2]
[346851454,1735326624797,1281.93,0.0001414,2]
[346851455,1735326625456,1281.93,0.00014414,2]
[346851456,1735326625958,1281.93,0.00014688,2]
[346851457,1735326626841,1281.93,0.00014962,2]
[346851458,1735326627663,519.01559085,0.00015236,2]
[346851481,1735326632518,-762.91440915,0.00015236,2]
[346851483,1735326632527,-1281.93,0.0001551,2]
[346851485,1735326632536,-1281.93,0.00015784,2]
[346851487,1735326632546,-1281.93,0.00016058,2]
[346851489,1735326632556,-1281.93,0.00016332,2]
[346851491,1735326632565,-150.0,0.000169,2]
[346851493,1735326632575,-543.13212334,0.00018032,2]
[346851495,1735326632584,-151.0,0.00018149,6]
[346851497,1735326632594,-3503.25,0.00018249,2]
[346851499,1735326632603,-151.0,0.00018491,6]
[346851501,1735326632615,-3503.25,0.00018523,2]
[346851504,1735326632625,-2027.51,0.00018671,2]
[346851506,1735326632634,-500.0,0.00018671,2]
[346851507,1735326632644,-500.0,0.00018671,2]
[346851510,1735326632655,-500.0,0.00018793,2]
[346851512,1735326632664,-3503.25,0.00018797,2]
[346851513,1735326632674,-151.0,0.00018833,6]
[346851514,1735326632684,-1619.41755647,0.000189,2]
[346851515,1735326632693,-2027.51,0.00018945,2]
[346851516,1735326632703,-500.0,0.00018945,2]
[346851517,1735326632713,-302.57643837,0.00019,2]
[346851518,1735326632722,-543.13212334,0.0001907,2]
[346851519,1735326632731,-3503.25,0.00019071,2]
[346851520,1735326632741,-151.0,0.00019175,7]
[346851521,1735326632750,-500.0,0.00019178,6]
[346851522,1735326632759,-500.0,0.00019178,60]
[346851523,1735326632773,-214.9940647,0.00019178,2]
[346851524,1735326632784,-379.99308121,0.00019178,2]
[346852081,1735326638431,-304.1443886,0.0001359,2]
[346852084,1735326638446,-195.8556114,0.0001359,2]
[346852086,1735326638459,-133.77059763,0.00013591,2]
[346852089,1735326638474,-450.09940237,0.00013591,2]
[346852091,1735326638485,-583.87,0.00013865,2]
[346852093,1735326638495,-412.33723313,0.00014139,2]
[346852095,1735326638508,-171.53276687,0.00014139,2]
[346852097,1735326638517,-583.87,0.00014413,2]
[346852099,1735326638529,-583.87,0.00014687,2]
[346852101,1735326638540,-583.87,0.00014961,2]
[346852104,1735326638552,-583.87,0.00015235,2]
[346852106,1735326638562,-583.87,0.00015509,2]
[346852108,1735326638573,-583.87,0.00015783,2]
[346852111,1735326638584,-583.87,0.00016057,2]
[346852113,1735326638594,-500.0,0.00016438,2]
[346852115,1735326638604,-157.03437525,0.0001644,2]
[346852117,1735326638616,-1281.93,0.00016606,2]
[346852119,1735326638626,-1281.93,0.0001688,2]
[346852121,1735326638636,-394.0,0.00017075,2]
[346852124,1735326638648,-1281.93,0.00017154,2]
[346852126,1735326638658,-1281.93,0.00017428,2]
[346852128,1735326638669,-1281.93,0.00017702,2]
[346852130,1735326638679,-500.0,0.00017808,4]
[346852132,1735326638691,-1281.93,0.00017976,2]
[346852134,1735326638702,-1281.93,0.0001825,2]
[346852137,1735326638713,-1281.93,0.00018524,2]
[346852139,1735326638723,-500.0,0.00018793,2]
[346852141,1735326638733,-500.0,0.00019067,2]
[346852143,1735326638744,-216.32887849,0.00019177,2]
[346852145,1735326638755,-545.34206546,0.00019177,2]
[346852147,1735326638766,-176.98030053,0.00019177,2]
[346852149,1735326638778,-57.06285409,0.00019178,2]
[346852151,1735326638789,-652.05,0.00019178,2]
[346852154,1735326638799,-652.05,0.00019178,2]
[346852156,1735326638810,-652.05,0.00019178,2]
[346852158,1735326638820,-652.05,0.00019178,2]
[346852160,1735326638831,-652.05,0.00019178,2]
[346852162,1735326638841,-652.05,0.00019178,2]
[346852164,1735326638851,-652.05,0.00019178,2]
[346852166,1735326638862,-652.05,0.00019178,2]
[346852168,1735326638872,-652.05,0.00019178,2]
[346852171,1735326638883,-652.05,0.00019178,2]
[346852173,1735326638893,-652.05,0.00019178,2]
[346852175,1735326638903,-652.05,0.00019178,2]
[346852177,1735326638914,-652.05,0.00019178,2]
[346852179,1735326638924,-652.05,0.00019178,2]
[346852181,1735326638935,-652.05,0.00019178,2]
[346852183,1735326638945,-652.05,0.00019178,2]
[346852185,1735326638956,-652.05,0.00019178,2]
[346852188,1735326638967,-652.05,0.00019178,2]
[346852190,1735326638977,-652.05,0.00019178,2]
[346852192,1735326638987,-652.05,0.00019178,2]
[346852194,1735326638998,-652.05,0.00019178,2]
[346852196,1735326639008,-1498.7,0.00019178,2]
[346852198,1735326639019,-1498.7,0.00019178,2]
[346852200,1735326639031,-1498.7,0.00019178,2]
[346852203,1735326639042,-1498.7,0.00019178,2]
[346852205,1735326639053,-1498.7,0.00019178,2]
[346852220,1735326639183,-1498.7,0.00019178,2]
[346852222,1735326639197,-1498.7,0.00019178,2]
[346852224,1735326639207,-1498.7,0.00019178,2]
[346852226,1735326639217,-1498.7,0.00019178,2]
[346852228,1735326639226,-1498.7,0.00019178,2]
[346852230,1735326639236,-1498.7,0.00019178,2]
[346852232,1735326639246,-1498.7,0.00019178,2]
[346852234,1735326639255,-1498.7,0.00019178,2]
[346852236,1735326639264,-1498.7,0.00019178,2]
[346852238,1735326639273,-1498.7,0.00019178,2]
[346852240,1735326639283,-1498.7,0.00019178,2]
[346852242,1735326639292,-1498.7,0.00019178,2]
[346852244,1735326639303,-1498.7,0.00019178,2]
[346852246,1735326639312,-1498.7,0.00019178,2]
[346852248,1735326639321,-1498.7,0.00019178,2]
[346852250,1735326639331,-1498.7,0.00019178,2]
[346852252,1735326639341,-500.0,0.00019178,6]
[346852254,1735326639350,-270.524305,0.00019178,2]
[346852256,1735326639360,-14247.5620923,0.00019178,11]
[346852259,1735326639369,-669.393,0.0001919,2]
[346852260,1735326639379,-302.57643837,0.0001919,2]
[346852263,1735326639388,-4307.33507511,0.00019198,2]
[346852265,1735326639398,-2027.51,0.00019219,2]
[346852266,1735326639407,-500.0,0.00019219,2]
[346852269,1735326639417,-352.3665978,0.00019233,2]
[346852270,1735326639426,-652.05,0.00019243,2]
[346852271,1735326639435,-443.15,0.000193,7]
[346852272,1735326639444,-500.0,0.00019341,2]
[346852273,1735326639454,-302.57643837,0.0001938,2]
[346852274,1735326639463,-2027.51,0.00019493,2]
[346852275,1735326639471,-500.0,0.00019493,2]
[346852276,1735326639480,-652.25,0.00019516,2]
[346852277,1735326639489,-151.0,0.00019518,7]
[346852279,1735326639499,-302.57643837,0.0001957,2]
[346852281,1735326639507,-302.57643837,0.0001976,2]
[346852283,1735326639517,-2027.51,0.00019767,2]
[346852285,1735326639526,-500.0,0.00019767,2]
[346852287,1735326639536,-151.0,0.0001986,7]
[346852289,1735326639545,-151.0,0.0001986,7]
[346852291,1735326639554,-1000.0,0.000199,2]
[346852293,1735326639563,-40727.34645218,0.00019922,2]
[346852295,1735326639572,-10310.54764679,0.00019947,2]
[346852297,1735326639582,-453.86465756,0.0001995,4]
[346852299,1735326639591,-674.2481889,0.00019999,2]
[346852302,1735326639602,-1099.599999,0.0002,2]
[346852304,1735326639617,-2000.0,0.0002,2]
[346852305,1735326639627,-2027.51,0.00020041,2]
[346852307,1735326639636,-500.0,0.00020041,2]
[346852310,1735326639647,-394.0,0.00020075,2]
[346852312,1735326639656,-212.0,0.00020078,2]
[346852314,1735326639666,-212.79,0.00020078,2]
[346852316,1735326639675,-159.0,0.00020078,2]
[346852318,1735326639685,-159.0,0.00020078,2]
[346852320,1735326639696,-159.0,0.00020078,2]
[346852322,1735326639705,-159.0,0.00020078,2]
[346852324,1735326639715,-159.0,0.00020078,2]
[346852326,1735326639724,-159.0,0.00020078,2]
[346852328,1735326639734,-159.0,0.00020078,2]
[346852330,1735326639743,-160.22,0.00020078,2]
[346852332,1735326639752,-342.72616014,0.00020099,2]
[346852334,1735326639761,-4599.38832551,0.000201,2]
[346852336,1735326639770,-4599.3883255,0.000201,2]
[346852338,1735326639780,-4599.3883255,0.000201,2]
[346852340,1735326639790,-4599.3883255,0.000201,2]
[346852342,1735326639799,-16051.2928662,0.000201,2]
[346852344,1735326639808,-16051.29286618,0.000201,2]
[346852346,1735326639818,-16051.29286618,0.000201,2]
[346852348,1735326639827,-16051.29286618,0.000201,2]
[346852350,1735326639836,-26361.61656747,0.000201,6]
[346852352,1735326639845,-32473.11496532,0.000201,3]
[346852354,1735326639854,-8343.9527442,0.00020107,2]
[346852356,1735326639863,-543.13212334,0.00020107,2]
[346852358,1735326639872,-154.09298051,0.00020109,2]
[346852360,1735326639881,-154.09298051,0.00020109,2]
[346852362,1735326639891,-154.09298051,0.00020109,2]
[346852364,1735326639900,-154.09298051,0.00020109,2]
[346852366,1735326639909,-154.09298051,0.00020109,2]
[346852368,1735326639919,-154.09298051,0.00020109,2]
[346852370,1735326639929,-154.09298051,0.00020109,2]
[346852372,1735326639938,-154.09298051,0.00020109,2]
[346852374,1735326639947,-154.09298051,0.00020109,2]
[346852376,1735326639956,-154.09298051,0.00020109,2]
[346852379,1735326639966,-154.09298051,0.00020109,2]
[346852382,1735326639976,-154.09298051,0.00020109,2]
[346852384,1735326639985,-154.09298051,0.00020109,2]
[346852386,1735326639994,-154.09298051,0.00020109,2]
[346852387,1735326640004,-154.09298051,0.00020109,2]
[346852390,1735326640013,-154.09,0.00020109,2]
[346852391,1735326640023,-184.91157661,0.00020109,2]
[346852393,1735326640032,-184.91157661,0.00020109,2]
[346852395,1735326640041,-184.91157661,0.00020109,2]
[346852397,1735326640049,-184.91157661,0.00020109,2]
[346852399,1735326640059,-184.91157661,0.00020109,2]
[346852401,1735326640068,-184.91157661,0.00020109,2]
[346852403,1735326640077,-184.91157661,0.00020109,2]
[346852405,1735326640086,-184.91157661,0.00020109,2]
[346852407,1735326640095,-184.91157661,0.00020109,2]
[346852409,1735326640105,-184.91157661,0.00020109,2]
[346852411,1735326640114,-184.91157661,0.00020109,2]
[346852413,1735326640123,-184.91157661,0.00020109,2]
[346852415,1735326640133,-184.91157661,0.00020109,2]
[346852417,1735326640142,-184.91157661,0.00020109,2]
[346852419,1735326640152,-184.91157661,0.00020109,2]
[346852421,1735326640162,-184.91157661,0.00020109,2]
[346852423,1735326640171,-184.91157661,0.00020109,2]
[346852425,1735326640181,-184.91157661,0.00020109,2]
[346852427,1735326640191,-184.91157661,0.00020109,2]
[346852429,1735326640200,-184.91,0.00020109,2]
[346852431,1735326640209,-1052.23894669,0.00020109,2]
[346852433,1735326640219,-1052.23894669,0.00020109,2]
[346852435,1735326640228,-1052.23894669,0.00020109,2]
[346852437,1735326640238,-1052.23894669,0.00020109,2]
[346852439,1735326640248,-1052.23894669,0.00020109,2]
[346852441,1735326640257,-1052.23894669,0.00020109,2]
[346852443,1735326640267,-1052.23894669,0.00020109,2]
[346852445,1735326640276,-1052.23894669,0.00020109,2]
[346852447,1735326640286,-1052.23894669,0.00020109,2]
[346852449,1735326640295,-1052.23894669,0.00020109,2]
[346852451,1735326640304,-1052.23894669,0.00020109,2]
[346852453,1735326640314,-1052.23894669,0.00020109,2]
[346852455,1735326640324,-1052.23894669,0.00020109,2]
[346852457,1735326640333,-1052.23894669,0.00020109,2]
[346852459,1735326640343,-1052.23894669,0.00020109,2]
[346852461,1735326640352,-1052.23894669,0.00020109,2]
[346852463,1735326640362,-1052.23894669,0.00020109,2]
[346852465,1735326640371,-1052.23894669,0.00020109,2]
[346852467,1735326640381,-1052.23894669,0.00020109,2]
[346852469,1735326640390,-1052.23,0.00020109,2]
[346852472,1735326640399,-1578.35842004,0.00020109,2]
[346852474,1735326640409,-1578.35842004,0.00020109,2]
[346852476,1735326640418,-1578.35842004,0.00020109,2]
[346852478,1735326640427,-1578.35842004,0.00020109,2]
[346852480,1735326640437,-1578.35842004,0.00020109,2]
[346852482,1735326640446,-1578.35842004,0.00020109,2]
[346852484,1735326640456,-1578.35842004,0.00020109,2]
[346852486,1735326640465,-1578.35842004,0.00020109,2]
[346852488,1735326640476,-1578.35842004,0.00020109,2]
[346852490,1735326640485,-1578.35842004,0.00020109,2]
[346852492,1735326640495,-1578.35842004,0.00020109,2]
[346852494,1735326640504,-1578.35842004,0.00020109,2]
[346852496,1735326640514,-1578.35842004,0.00020109,2]
[346852498,1735326640523,-1578.35842004,0.00020109,2]
[346852500,1735326640532,-1578.35842004,0.00020109,2]
[346852502,1735326640541,-1578.35842004,0.00020109,2]
[346852504,1735326640550,-1578.35842004,0.00020109,2]
[346852506,1735326640560,-1578.35842004,0.00020109,2]
[346852508,1735326640569,-1578.35842004,0.00020109,2]
[346852510,1735326640578,-1578.35,0.00020109,2]
[346852512,1735326640588,-454.77148002,0.0002014,4]
[346852514,1735326640599,-151.40492784,0.00020162,2]
[346852516,1735326640611,-500.0,0.00020173,2]
[346852518,1735326640622,-160.97547144,0.00020173,2]
[346852520,1735326640631,-500.0,0.00020173,2]
[346852522,1735326640640,-500.09226137,0.00020173,2]
[346852524,1735326640651,-151.0,0.00020185,2]
[346852526,1735326640660,-151.0,0.00020185,2]
[346852528,1735326640670,-151.0,0.00020185,2]
[346852530,1735326640679,-151.0,0.00020185,2]
[346852532,1735326640689,-151.0,0.00020185,2]
[346852534,1735326640698,-151.0,0.00020185,2]
[346852536,1735326640708,-151.0,0.00020185,2]
[346852538,1735326640717,-151.0,0.00020185,2]
[346852540,1735326640727,-151.0,0.00020185,2]
[346852542,1735326640736,-151.0,0.00020185,2]
[346852544,1735326640745,-151.0,0.00020185,2]
[346852546,1735326640755,-151.0,0.00020185,2]
[346852548,1735326640764,-153.0,0.00020192,2]
[346852550,1735326640774,-426.6778935,0.00020192,2]
[346852552,1735326640783,-153.0,0.00020192,2]
[346852554,1735326640792,-153.0,0.00020192,2]
[346852556,1735326640802,-151.0,0.00020195,2]
[346852558,1735326640811,-151.0,0.00020195,2]
[346852560,1735326640820,-151.0,0.00020195,2]
[346852562,1735326640829,-151.0,0.00020195,2]
[346852564,1735326640838,-151.0,0.00020195,2]
[346852566,1735326640847,-151.0,0.00020195,2]
[346852568,1735326640857,-151.0,0.00020195,2]
[346852570,1735326640866,-151.0,0.00020195,2]
[346852572,1735326640876,-151.0,0.00020195,2]
[346852574,1735326640886,-151.0,0.00020195,2]
[346852576,1735326640895,-151.830043,0.00020195,2]
[346852578,1735326640904,-151.0,0.00020195,2]
[346852580,1735326640913,-151.0,0.00020195,2]
[346852582,1735326640923,-151.0,0.00020195,2]
[346852584,1735326640932,-151.0,0.00020195,2]
[346852586,1735326640941,-151.0,0.00020195,2]
[346852588,1735326640950,-177.63983,0.00020195,2]
[346852590,1735326640959,-151.0,0.00020195,2]
[346852592,1735326640968,-151.0,0.00020195,2]
[346852594,1735326640977,-151.0,0.00020195,2]
[346852596,1735326640987,-151.0,0.00020195,2]
[346852598,1735326640996,-151.0,0.00020195,2]
[346852600,1735326641005,-151.0,0.00020195,2]
[346852602,1735326641015,-204.074826,0.00020195,2]
[346852604,1735326641026,-27728.11,0.000202,2]
[346852606,1735326641036,-187.55528289,0.00020201,2]
[346852608,1735326641047,-573.28,0.00020201,2]
[346852610,1735326641056,-150.23,0.00020202,10]
[346852612,1735326641066,-202.53543627,0.00020202,10]
[346852614,1735326641076,-155.74300801,0.00020202,10]
[346852616,1735326641085,-151.0,0.00020202,15]
[346852618,1735326641095,-151.0,0.00020202,15]
[346852620,1735326641104,-150.23,0.00020202,10]
[346852622,1735326641114,-150.23,0.00020202,2]
[346852624,1735326641123,-150.23,0.00020202,10]
[346852626,1735326641133,-150.23,0.00020202,2]
[346852628,1735326641143,-152.55550242,0.00020202,10]
[346852630,1735326641153,-151.0,0.00020207,2]
[346852632,1735326641162,-151.0,0.00020207,2]
[346852634,1735326641172,-151.0,0.00020207,2]
[346852636,1735326641182,-151.0,0.00020207,2]
[346852638,1735326641192,-151.0,0.00020207,2]
[346852640,1735326641202,-242.128128,0.00020207,2]
[346852642,1735326641211,-151.0,0.00020207,2]
[346852644,1735326641225,-153.445269,0.00020207,2]
[346852646,1735326641234,-151.0,0.00020207,2]
[346852649,1735326641243,-151.0,0.00020207,2]
[346852651,1735326641254,-151.0,0.00020207,2]
[346852653,1735326641264,-151.0,0.00020207,2]
[346852655,1735326641274,-151.0,0.00020207,2]
[346852657,1735326641284,-151.0,0.00020207,2]
[346852658,1735326641293,-151.0,0.00020207,2]
[346852661,1735326641302,-151.0,0.00020207,2]
[346852663,1735326641312,-151.0,0.00020207,2]
[346852665,1735326641321,-151.0,0.00020207,2]
[346852666,1735326641330,-151.0,0.00020207,2]
[346852668,1735326641340,-249.772408,0.00020207,2]
[346852671,1735326641351,-151.0,0.00020207,2]
[346852672,1735326641362,-151.0,0.00020207,2]
[346852675,1735326641374,-151.0,0.00020207,2]
[346852677,1735326641383,-151.0,0.00020207,2]
[346852679,1735326641392,-151.0,0.00020207,2]